bitfinex-derivatives/quotes_SOLF0:USTF0_20250712
["timestamp","ask_amount","ask_price","bid_price","bid_amount"]
[1752303521192,3.33,163.6,163.58,3.50923544]
[1752303521394,3.33,163.6,163.58,0.03923544]
[1752303521799,3.33,163.6,163.58,6.14963544]
[1752303522995,3.33,163.6,163.59,9.5801]
[1752303523194,3.33,163.6,163.59,6.1101]
[1752303523392,3.33,163.6,163.59,9.5801]
[1752303524095,3.33,163.6,163.59,6.1101]
[1752303525296,3.33,163.6,163.58,9.61953544]
[1752303530507,3.33,163.6,163.59,6.1101]
[1752303530699,3.33,163.6,163.59,9.6501]
[1752303531601,3.33,163.6,163.59,6.1101]
[1752303532399,3.33,163.6,163.59,9.6501]
[1752303536907,3.33,163.6,163.58,0.03923544]
[1752303537409,3.33,163.6,163.59,6.1101]
[1752303537604,3.33,163.6,163.58,0.03923544]
[1752303538310,3.33,163.6,163.58,6.14933544]
[1752303538506,3.33,163.6,163.58,9.68933544]
[1752303540708,3.33,163.6,163.58,6.14933544]
[1752303541104,3.48,163.59,163.58,6.14933544]
[1752303541507,3.48,163.59,163.58,0.03923544]
[1752303541705,9.5901,163.59,163.58,0.03923544]
[1752303544209,3.48,163.59,163.58,0.03923544]
[1752303545007,3.48,163.59,163.58,3.57923544]
[1752303549219,3.48,163.59,163.58,0.03923544]
[1752303553521,3.48,163.59,163.58,3.57923544]
[1752303555115,3.48,163.59,163.58,0.03923544]
[1752303555722,3.48,163.59,163.58,3.62923544]
[1752303556923,3.48,163.59,163.58,0.03923544]
[1752303561434,9.5901,163.59,163.58,0.03923544]
[1752303565437,3.48,163.59,163.53,3.59]
[1752303566435,3.36,163.56,163.54,6.1117]
[1752303566632,3.36,163.56,163.54,9.7017]
[1752303567337,3.36,163.56,163.55,6.1116]
[1752303568938,3.36,163.56,163.54,9.7018]
[1752303569536,3.36,163.55,163.53,3.59]
[1752303570537,3.36,163.55,163.53,9.7021]
[1752303570840,3.36,163.55,163.51,3.59]
[1752303571241,3.36,163.53,163.5,3.59]
[1752303571638,3.36,163.51,163.47,3.59]
[1752303571942,3.36,163.51,163.46,3.59]
[1752303572238,3.36,163.49,163.47,6.15652588]
[1752303575440,3.36,163.49,163.47,0.04222588]
[1752303577035,9.4739,163.49,163.47,0.04222588]
[1752303577234,3.36,163.48,163.47,0.04222588]
[1752303577944,3.36,163.48,163.47,3.63222588]
[1752303578339,3.36,163.48,163.47,0.04222588]
[1752303581744,3.36,163.48,163.47,3.63222588]
[1752303582744,3.36,163.48,163.47,0.04222588]
[1752303584342,3.36,163.48,163.47,3.63222588]
[1752303585546,3.36,163.48,163.47,0.04222588]
[1752303586046,3.36,163.48,163.47,3.56222588]
[1752303586945,3.36,163.48,163.47,0.04222588]
[1752303588347,9.4742,163.48,163.47,0.04222588]
[1752303588550,9.6942,163.48,163.47,0.04222588]
[1752303601959,3.58,163.48,163.47,9.67672588]
[1752303602157,3.58,163.48,163.47,3.56222588]
[1752303602559,3.58,163.48,163.47,0.04222588]
[1752303602753,9.6942,163.48,163.47,0.04222588]
[1752303602956,3.58,163.48,163.47,0.04222588]
[1752303603152,3.58,163.48,163.47,3.56222588]
[1752303603349,9.6942,163.48,163.47,3.56222588]
[1752303604355,9.6942,163.48,163.47,0.04222588]
[1752303607961,3.58,163.48,163.47,0.04222588]
[1752303608158,3.58,163.48,163.47,3.56222588]
[1752303608863,3.58,163.48,163.47,0.04222588]
[1752303610161,9.6942,163.48,163.47,0.04222588]
[1752303610461,3.58,163.48,163.42,3.52]
[1752303610668,3.58,163.48,163.42,9.6361]
[1752303610861,3.58,163.48,163.43,3.52]
[1752303611466,3.58,163.48,163.44,3.52]
[1752303611467,6.1151,163.46,163.44,3.52]
[1752303611764,3.58,163.45,163.44,3.52]
[1752303613067,3.58,163.45,163.44,9.6357]
[1752303613360,3.62208938,163.47,163.41,3.52]
[1752303613559,3.62208938,163.47,163.46,3.52]
[1752303613765,3.58,163.47,163.46,3.52]
[1752303614164,3.58,163.47,163.46,6.1149]
[1752303614355,3.58,163.47,163.46,9.6349]
[1752303614557,5.11806839,163.55,163.47,3.52]
[1752303614766,3.59,163.51,163.47,3.52]
[1752303615062,6.1126,163.53,163.47,3.52]
[1752303615255,3.59,163.52,163.5,3.52]
[1752303615668,6.1127,163.52,163.5,3.52]
[1752303615871,3.59,163.51,163.5,3.52]
[1752303616762,3.59,163.51,163.5,9.6334]
[1752303618770,3.62860054,163.52,163.51,3.52]
[1752303619262,9.7027,163.52,163.49,6.1136]
[1752303619565,3.59,163.51,163.5,3.52]
[1752303620365,3.59,163.51,163.5,9.6334]
[1752303621372,3.59,163.51,163.5,3.52]
[1752303623263,3.59,163.51,163.47,3.52]
[1752303623867,3.59,163.49,163.47,9.6344]
[1752303624069,3.59,163.49,163.47,6.1144]
[1752303624270,3.59,163.49,163.48,3.52]
[1752303625072,3.59,163.49,163.48,9.6342]
[1752303626469,0.03943891,163.51,163.49,9.6337]
[1752303626675,3.62943891,163.51,163.5,3.52]
[1752303630276,3.62943891,163.51,163.49,9.6337]
[1752303630880,6.15253891,163.51,163.49,3.52]
[1752303631078,3.59,163.5,163.48,6.114]
[1752303631279,3.59,163.5,163.48,9.634]
[1752303632582,3.59,163.5,163.49,3.52]
[1752303635881,3.59,163.5,163.48,9.634]
[1752303636175,3.59,163.5,163.48,6.114]
[1752303636382,3.59,163.5,163.49,3.52]
[1752303636882,9.7034,163.5,163.48,0.04544007]
[1752303637176,3.59,163.5,163.48,0.04544007]
[1752303637580,3.59,163.5,163.48,3.56544007]
[1752303638083,9.7036,163.5,163.48,3.56544007]
[1752303638380,3.59,163.49,163.48,3.56544007]
[1752303638882,3.59,163.49,163.48,9.67964007]
[1752303640680,3.59,163.49,163.48,3.56544007]
[1752303640886,3.59,163.49,163.48,0.04544007]
[1752303643781,3.59,163.49,163.48,9.67964007]
[1752303643981,3.59,163.5,163.48,3.56544007]
[1752303645188,3.59,163.5,163.49,6.1138]
[1752303645387,3.59,163.5,163.49,9.6138]
[1752303650797,3.59,163.5,163.48,6.15944007]
[1752303651190,3.59,163.5,163.48,0.04544007]
[1752303651389,3.59,163.5,163.48,3.54544007]
[1752303652692,3.59,163.5,163.48,9.65954007]
[1752303653996,0.03943891,163.51,163.5,6.1134]
[1752303654191,5.1379946,163.54,163.5,3.5]
[1752303654398,3.28,163.59,163.53,3.5]
[1752303654695,3.28,163.58,163.56,3.5]
[1752303656189,0.03918698,163.59,163.56,3.5]
[1752303656891,3.28,163.58,163.55,0.0404069]
[1752303657097,3.28,163.58,163.56,3.5]
[1752303660599,3.28,163.58,163.57,3.10140418]
[1752303661493,9.3904,163.58,163.57,3.10140418]
[1752303661700,0.03918698,163.59,163.55,0.0404069]
[1752303662005,0.03918698,163.59,163.55,3.5404069]
[1752303662302,0.03918698,163.59,163.58,9.6104]
[1752303662809,3.28,163.62,163.61,9.6093]
[1752303663198,3.28,163.62,163.61,3.5]
[1752303663503,3.28,163.62,163.56,3.5]
[1752303663903,3.28,163.62,163.59,6.1098]
[1752303664399,3.28,163.62,163.59,9.6098]
[1752303664998,3.28,163.62,163.59,3.5]
[1752303665295,9.3892,163.62,163.58,9.6104]
[1752303665696,3.28,163.61,163.58,3.5]
[1752303666100,3.32287965,163.61,163.58,3.5]
[1752303666494,3.28,163.59,163.57,0.04208556]
[1752303667406,3.28,163.57,163.5,3.5]
[1752303667803,9.391,163.57,163.5,3.5]
[1752303668003,3.28,163.56,163.5,3.5]
[1752303668504,3.28,163.55,163.5,3.5]
[1752303668697,3.28,163.55,163.51,0.04397975]
[1752303668895,3.28,163.55,163.53,3.5]
[1752303669705,3.28,163.54,163.53,3.5]
[1752303670005,3.28,163.54,163.53,9.6123]
[1752303670909,3.28,163.54,163.52,9.6126]
[1752303672705,3.28,163.54,163.52,3.5]
[1752303673510,3.28,163.54,163.52,9.6125]
[1752303673812,3.28,163.54,163.53,3.5]
[1752303674207,3.28,163.54,163.53,9.6123]
[1752303675210,3.57,163.56,163.55,9.4115]
[1752303675414,3.57,163.56,163.55,3.3]
[1752303675810,3.57,163.56,163.54,3.33916306]
[1752303676012,3.57,163.58,163.55,3.3]
[1752303676311,3.57,163.58,163.55,9.4113]
[1752303676312,3.57,163.57,163.55,9.4113]
[1752303676512,3.57,163.57,163.55,9.45575331]
[1752303676712,3.57,163.57,163.55,3.34445331]
[1752303676907,6.20197075,163.65,163.55,3.34445331]
[1752303676908,3.57,163.64,163.56,3.3]
[1752303677119,3.57,163.63,163.56,3.3]
[1752303677411,3.57,163.6,163.57,9.4107]
[1752303677602,3.57,163.6,163.58,0.04024552]
[1752303678007,3.57,163.6,163.59,9.4101]
[1752303678413,3.57,163.6,163.58,0.04024552]
[1752303678610,3.57,163.59,163.58,0.04024552]
[1752303679211,9.6801,163.59,163.58,0.04024552]
[1752303681413,6.1109,163.57,163.53,9.4122]
[1752303681615,3.57,163.56,163.53,3.3]
[1752303682011,3.57,163.56,163.53,6.1122]
[1752303682318,3.57,163.56,163.53,3.3]
[1752303682709,6.15575854,163.56,163.53,3.3]
[1752303682916,3.57,163.55,163.53,3.3]
[1752303683110,3.57,163.55,163.53,9.4123]
[1752303683316,3.57,163.55,163.54,3.3]
[1752303684413,3.57,163.55,163.53,3.3]
[1752303686716,0.04445854,163.56,163.55,6.1116]
[1752303686915,0.04445854,163.56,163.55,9.4116]
[1752303688421,6.1086,163.63,163.59,6.1101]
[1752303688621,3.57,163.61,163.6,3.3]
[1752303689219,3.57,163.61,163.59,9.4101]
[1752303689923,3.57,163.61,163.59,3.3]
[1752303690926,3.57,163.61,163.58,6.15291976]
[1752303691126,3.57,163.61,163.58,9.45291976]
[1752303692832,3.57,163.61,163.59,3.3]
[1752303693226,3.57,163.61,163.58,9.45291976]
[1752303694927,3.57,163.61,163.59,6.11]
[1752303695126,3.57,163.61,163.59,9.41]
[1752303696124,3.57,163.61,163.59,3.3]
[1752303696329,3.57,163.61,163.58,9.45291976]
[1752303696527,9.6794,163.61,163.58,9.45291976]
[1752303696831,3.57,163.6,163.58,9.45291976]
[1752303700935,3.57,163.59,163.58,0.04261976]
[1752303701332,0.03982999,163.61,163.58,3.34261976]
[1752303702440,0.03982999,163.61,163.6,9.4097]
[1752303703132,3.60982999,163.61,163.6,9.4097]
[1752303703832,0.03982999,163.61,163.6,9.4097]
[1752303707036,3.41,163.66,163.59,3.27]
[1752303707533,3.41,163.66,163.6,3.27]
[1752303708030,3.41,163.66,163.63,6.1082]
[1752303708236,3.41,163.66,163.59,5.87078786]
[1752303708538,3.41,163.66,163.61,0.0409129]
[1752303708835,3.41,163.66,163.62,3.27]
[1752303709238,3.41,163.66,163.63,6.1083]
[1752303709433,3.41,163.66,163.63,9.3783]
[1752303711135,6.1075,163.66,163.63,9.3783]
[1752303711342,3.41,163.65,163.63,3.27]
[1752303711640,3.41,163.65,163.62,9.3788]
[1752303712041,3.41,163.65,163.61,0.0409129]
[1752303712042,3.41,163.64,163.61,9.4201129]
[1752303712239,3.41,163.64,163.61,6.1501129]
[1752303712440,3.41,163.64,163.62,3.27]
[1752303713143,3.41,163.64,163.61,9.4201129]
[1752303713347,3.41,163.63,163.61,9.4201129]
[1752303713942,3.41,163.63,163.62,3.27]
[1752303716945,3.41,163.63,163.62,9.3789]
[1752303717747,3.41,163.66,163.64,3.27]
[1752303718443,3.41,163.66,163.63,9.3784]
[1752303719647,3.41,163.65,163.63,9.3784]
[1752303719946,3.41,163.66,163.62,6.1089]
[1752303720242,3.41,163.65,163.62,6.1089]
[1752303720443,3.41,163.65,163.62,3.27]
[1752303720646,9.518,163.65,163.62,3.27]
[1752303720844,6.108,163.65,163.62,3.27]
[1752303721044,3.41,163.64,163.62,3.27]
[1752303722145,3.41,163.64,163.62,9.3789]
[1752303724249,3.41,163.63,163.61,6.1500129]
[1752303724438,3.41,163.63,163.61,0.0409129]
[1752303724842,3.41,163.63,163.61,6.1502129]
[1752303725550,3.41,163.62,163.61,6.1502129]
[1752303727751,9.5189,163.62,163.61,0.0409129]
[1752303727950,3.41,163.62,163.57,3.27]
[1752303728642,6.1097,163.6,163.57,9.3805]
[1752303728942,3.41,163.59,163.57,9.3805]
[1752303729142,3.41,163.59,163.57,3.30934229]
[1752303729650,3.41,163.59,163.57,9.42004229]
[1752303729850,3.41,163.59,163.57,0.03934229]
[1752303731147,6.1104,163.58,163.57,0.03934229]
[1752303731453,3.41,163.58,163.53,3.27]
[1752303732047,0.0460395,163.6,163.53,3.27]
[1752303732249,3.41,163.55,163.53,3.27]
[1752303732649,9.5216,163.55,163.53,3.27]
[1752303732851,3.41,163.54,163.49,3.27]
[1752303733544,3.41,163.52,163.5,0.04557642]
[1752303734254,3.41,163.52,163.5,3.31557642]
[1752303735455,3.41,163.52,163.5,0.04557642]
[1752303736651,3.45,163.51,163.5,0.04557642]
[1752303737950,3.45,163.51,163.46,6.1148]
[1752303738147,3.45,163.51,163.46,9.4348]
[1752303738652,3.45,163.49,163.47,9.4345]
[1752303739055,184.56,163.54,163.47,9.4345]
[1752303739253,3.45,163.49,163.47,9.4345]
[1752303739561,3.45,163.48,163.47,9.4345]
[1752303740455,3.45,163.48,163.46,6.1148]
[1752303740652,3.45,163.48,163.46,9.4348]
[1752303741357,3.45,163.48,163.47,9.4345]
[1752303742252,3.45,163.48,163.47,3.32]
[1752303742447,3.45,163.48,163.46,6.1148]
[1752303742655,3.45,163.48,163.46,9.4348]
[1752303743557,3.45,163.47,163.44,3.32]
[1752303744151,3.49062936,163.47,163.44,3.32]
[1752303744547,3.45,163.46,163.44,3.32]
[1752303744752,3.45,163.46,163.43,6.1159]
[1752303744753,3.45,163.46,163.43,9.4359]
[1752303744954,3.45,163.46,163.44,3.32]
[1752303745158,3.45,163.46,163.44,9.4356]
[1752303746258,3.45,163.46,163.45,3.32]
[1752303746460,3.45,163.46,163.45,9.4353]
[1752303746657,0.04062936,163.47,163.46,3.32]
[1752303746658,3.49062936,163.47,163.46,3.32]
[1752303748761,9.60522936,163.47,163.44,6.1156]
[1752303748962,3.45,163.46,163.44,9.4356]
[1752303749162,3.45,163.46,163.44,3.32]
[1752303749461,3.45,163.45,163.4,5.87078786]
[1752303750157,3.45,163.45,163.41,3.32]
[1752303751156,3.45,163.45,163.44,6.1157]
[1752303751354,3.45,163.45,163.44,9.4357]
[1752303753858,3.45,163.45,163.44,6.1157]
[1752303754063,6.15522936,163.47,163.39,3.32]
[1752303754064,3.45,163.46,163.39,3.32]
[1752303754759,3.45,163.43,163.41,3.32]
[1752303754964,0.04186363,163.44,163.41,3.32]
[1752303755166,0.04186363,163.44,163.42,6.1161]
[1752303755462,3.45,163.42,163.38,5.87078786]
[1752303755665,3.45,163.42,163.41,6.1168]
[1752303756061,3.45,163.42,163.41,9.4368]
[1752303756256,3.45,163.43,163.36,3.32]
[1752303756667,3.45,163.42,163.39,6.1172]
[1752303756864,0.04213652,163.41,163.39,3.32]
[1752303757066,3.45,163.4,163.39,3.32]
[1752303757368,3.45,163.4,163.39,9.4375]
[1752303758171,3.45,163.4,163.39,3.32]
[1752303758465,3.45,163.4,163.38,9.4377]
[1752303759065,3.45,163.4,163.38,6.1177]
[1752303759561,3.45,163.4,163.39,6.1175]
[1752303759969,3.45,163.4,163.38,3.32]
[1752303760463,3.45,163.4,163.38,6.1178]
[1752303760762,3.45,163.4,163.37,3.32]
[1752303761669,3.45,163.4,163.38,6.1179]
[1752303761866,3.45,163.4,163.33,3.32]
[1752303762169,6.1181,163.38,163.35,6.1188]
[1752303762467,3.45,163.37,163.35,9.4388]
[1752303762769,3.45,163.37,163.35,6.1188]
[1752303763163,3.45,163.37,163.36,6.1187]
[1752303764258,3.45,163.37,163.31,3.32]
[1752303764459,0.04114414,163.38,163.33,3.32]
[1752303764667,0.04114414,163.38,163.36,3.32]
[1752303764864,3.45,163.4,163.39,9.4375]
[1752303766066,0.04197444,163.41,163.4,9.4372]
[1752303766465,3.37,163.44,163.43,6.116]
[1752303766660,3.37,163.44,163.43,9.436]
[1752303767067,3.41609707,163.45,163.44,3.32]
[1752303767267,3.41609707,163.45,163.41,5.89023285]
[1752303767268,3.41609707,163.45,163.42,3.32]
[1752303767467,528.36,163.51,163.44,6.1157]
[1752303767668,0.04453135,163.45,163.44,6.1157]
[1752303767863,528.36,163.51,163.44,6.1157]
[1752303768067,3.37,163.48,163.44,6.1157]
[1752303768272,3.37,163.45,163.44,3.32]
[1752303768669,3.37,163.45,163.44,6.1157]
[1752303771173,3.37,163.45,163.43,6.1159]
[1752303772778,3.37,163.44,163.41,3.32]
[1752303773074,3.37,163.44,163.37,3.32]
[1752303773271,3.37,163.44,163.36,5.89023285]
[1752303773272,3.37,163.44,163.41,6.1166]
[1752303773675,3.414634,163.44,163.41,6.1166]
[1752303775181,9.530334,163.44,163.41,6.1166]
[1752303775374,3.37,163.43,163.41,6.1166]
[1752303777973,3.37,163.43,163.42,6.1164]
[1752303778175,3.37,163.43,163.42,9.4364]
[1752303778367,3.37,163.43,163.4,3.32]
[1752303778680,3.37,163.43,163.37,3.32]
[1752303780079,3.37,163.43,163.41,6.1166]
[1752303783973,3.37,163.43,163.42,6.1164]
[1752303784579,3.37,163.43,163.42,9.4364]
[1752303785580,3.37,163.43,163.42,6.1164]
[1752303785782,3.37,163.43,163.39,3.32]
[1752303786178,3.37,163.43,163.39,9.4373]
[1752303786376,3.37,163.43,163.39,3.32]
[1752303786776,3.37,163.43,163.4,3.32]
[1752303787173,3.37,163.42,163.4,9.4371]
[1752303788684,6.160434,163.44,163.41,6.1168]
[1752303788874,0.044634,163.44,163.4,3.32]
[1752303789289,3.37,163.43,163.4,3.32]
[1752303789884,9.4863,163.43,163.4,9.4369]
[1752303790079,3.37,163.42,163.4,9.4369]
[1752303791486,9.4864,163.42,163.4,9.4369]
[1752303791687,3.37,163.41,163.4,6.1169]
[1752303793591,3.37,163.41,163.4,9.4369]
[1752303798099,3.37,163.41,163.4,6.1169]
[1752303801193,3.37,163.41,163.4,9.4469]
[1752303801505,3.37,163.41,163.4,6.1169]
[1752303801702,3.37,163.41,163.39,6.16047388]
[1752303801898,6.1169,163.41,163.39,9.49047388]
[1752303802104,3.49,163.4,163.39,0.04307388]
[1752303803407,9.6072,163.4,163.39,0.04307388]
[1752303809712,3.49,163.4,163.39,0.04307388]
[1752303810100,3.49,163.4,163.39,3.37307388]
[1752303810402,9.6072,163.4,163.39,0.04307388]
[1752303810602,3.49,163.4,163.35,3.33]
[1752303811005,3.49,163.38,163.36,3.33]
[1752303811608,3.49,163.38,163.36,9.4484]
[1752303811909,3.49,163.38,163.36,3.33]
[1752303812210,3.49,163.38,163.34,3.33]
[1752303812701,3.49,163.38,163.36,6.1183]
[1752303812899,3.49,163.38,163.36,9.4483]
[1752303814808,3.49,163.37,163.35,6.1189]
[1752303815006,3.49,163.37,163.35,9.4489]
[1752303815514,3.49,163.36,163.34,9.4492]
[1752303815715,3.49,163.36,163.34,3.33]
[1752303816012,3.49,163.36,163.35,6.119]
[1752303816611,3.49,163.36,163.34,9.4493]
[1752303818415,9.6087,163.36,163.34,3.33]
[1752303818618,3.49,163.35,163.34,3.33]
[1752303819818,3.49,163.35,163.34,9.4494]
[1752303822818,3.49,163.35,163.29,6.73927219]
[1752303823121,3.49,163.36,163.3,3.33]
[1752303823621,3.49,163.36,163.35,3.33]
[1752303824020,3.49,163.36,163.35,9.449]
[1752303824611,3.339973,163.37,163.36,9.6087]
[1752303828618,0.039973,163.37,163.36,9.6087]
[1752303828825,539.69597608,163.45,163.32,12.63130817]
[1752303829017,3.3,163.44,163.35,3.49]
[1752303829521,6.117,163.41,163.38,6.1177]
[1752303829726,3.3,163.4,163.34,5.89203598]
[1752303829922,3.3,163.4,163.37,3.49]
[1752303830122,3.34530828,163.39,163.37,9.6079]
[1752303830319,3.34530828,163.39,163.37,3.49]
[1752303830723,3.3,163.38,163.34,5.89203598]
[1752303831229,3.3,163.38,163.35,3.49]
[1752303831822,3.3,163.38,163.37,6.1183]
[1752303832028,0.04530828,163.39,163.35,3.49]
[1752303832626,0.04530828,163.39,163.35,3.53112467]
[1752303833129,3.34530828,163.39,163.38,6.1179]
[1752303833328,3.34530828,163.39,163.38,9.6079]
[1752303840535,0.04530828,163.39,163.38,9.6079]
[1752303840731,3.3,163.41,163.38,3.49]
[1752303840938,3.3,163.41,163.4,3.49]
[1752303841733,3.3,163.41,163.4,9.6072]
[1752303849743,3.3,163.41,163.4,6.1172]
[1752303855143,3.3,163.41,163.4,9.6872]
[1752303857536,3.49640729,163.42,163.41,9.6868]
[1752303861643,3.45,163.44,163.43,6.116]
[1752303861849,3.45,163.44,163.43,9.686]
[1752303866145,3.45,163.44,163.43,6.116]
[1752303869549,3.45,163.44,163.43,9.686]
[1752303873953,3.45,163.44,163.43,6.116]
[1752303874352,3.45,163.44,163.42,6.16054253]
[1752303874551,3.45,163.44,163.42,0.04424253]
[1752303876152,6.116,163.43,163.42,0.04424253]
[1752303876352,9.566,163.43,163.42,0.04424253]
[1752303889864,6.1166,163.42,163.39,6.1174]
[1752303890062,6.1166,163.42,163.34,3.32]
[1752303890063,3.27,163.41,163.34,3.32]
[1752303890368,6.1182,163.38,163.34,3.32]
[1752303890572,3.27,163.37,163.34,3.32]
[1752303891071,178.62,163.4,163.33,9.4396]
[1752303891072,3.27,163.35,163.33,9.4396]
[1752303891661,3.27,163.35,163.33,3.32]
[1752303892174,3.27,163.35,163.32,6.12]
[1752303892475,3.27,163.35,163.32,9.44]
[1752303893674,3.27,163.35,163.33,3.32]
[1752303894472,3.27,163.35,163.28,3.32]
[1752303894775,181.91,163.35,163.28,3.32]
[1752303894975,0.03925209,163.33,163.28,3.32]
[1752303895270,3.27,163.32,163.28,3.32]
[1752303896176,0.03925209,163.33,163.32,9.4402]
[1752303897672,3.30925209,163.33,163.32,9.4402]
[1752303898180,3.30925209,163.33,163.32,6.1202]
[1752303898576,0.03925209,163.33,163.32,6.1202]
[1752303898783,3.30925209,163.33,163.32,9.4402]
[1752303900985,3.30925209,163.33,163.31,3.32]
[1752303901174,3.30925209,163.33,163.3,3.32]
[1752303901575,3.30925209,163.33,163.3,9.4407]
[1752303902185,3.27,163.32,163.25,3.32]
[1752303902679,3.27,163.32,163.28,6.1214]
[1752303903081,3.27,163.29,163.28,9.4809543]
[1752303904686,3.27,163.29,163.28,6.1609543]
[1752303904888,3.27,163.29,163.28,0.0395543]
[1752303905384,6.1213,163.29,163.26,9.4423]
[1752303905687,3.27,163.28,163.25,3.32]
[1752303906088,6.1217,163.28,163.25,9.4426]
[1752303906291,3.27,163.27,163.25,3.32]
[1752303906581,3.27,163.26,163.21,3.32]
[1752303907587,3.27,163.26,163.24,6.1229]
[1752303907787,3.27,163.26,163.24,9.4429]
[1752303908389,3.27,163.26,163.23,9.4432]
[1752303909087,3.31595935,163.26,163.23,9.4432]
[1752303909282,3.27,163.25,163.23,9.4432]
[1752303909479,3.27,163.25,163.21,3.32]
[1752303910081,3.27,163.25,163.16,5.89203598]
[1752303910082,3.3170953,163.25,163.22,3.32]
[1752303910683,0.0470953,163.25,163.23,6.1235]
[1752303910879,3.27,163.24,163.23,9.4435]
[1752303912486,3.27,163.24,163.23,3.32]
[1752303912791,3.27,163.24,163.22,9.4438]
[1752303914092,3.27,163.24,163.23,6.1235]
[1752303914691,3.27,163.24,163.23,9.4435]
[1752303915192,3.27,163.24,163.23,6.1235]
[1752303915487,3.27,163.24,163.23,9.7235]
[1752303917295,0.0470953,163.25,163.24,6.1232]
[1752303917594,182.28,163.28,163.24,3.6]
[1752303917787,0.03932575,163.26,163.2,3.6]
[1752303918889,3.63932575,163.26,163.25,9.7228]
[1752303920999,0.03932575,163.26,163.25,9.7228]
[1752303922900,3.6,163.3,163.29,9.7213]
[1752303923099,3.6,163.3,163.29,6.1213]
[1752303924197,3.6,163.3,163.29,9.7213]
[1752303925998,3.6,163.3,163.28,6.1215]
[1752303927602,3.6,163.3,163.23,5.89203598]
[1752303927805,3.6,163.3,163.27,3.6]
[1752303928403,3.6,163.3,163.28,6.1215]
[1752303933709,3.6,163.3,163.27,9.7219]
[1752303934105,9.7209,163.3,163.27,9.7219]
[1752303934304,3.6,163.29,163.27,6.1219]
[1752303934705,3.6,163.29,163.27,9.7219]
[1752303936307,3.6,163.29,163.27,6.1219]
[1752303937611,3.6,163.29,163.26,9.7223]
[1752303938108,3.6,163.29,163.27,6.122]
[1752303938999,3.6,163.29,163.26,6.1223]
[1752303939204,3.6,163.27,163.2,3.6]
[1752303939608,9.7223,163.27,163.23,6.1233]
[1752303939808,3.6,163.24,163.23,6.1233]
[1752303940305,3.6,163.24,163.23,9.7233]
[1752303942213,0.04368161,163.25,163.24,9.7232]
[1752303942506,3.6,163.26,163.24,3.6]
[1752303942708,3.64669343,163.26,163.25,6.1228]
[1752303942911,0.04669343,163.26,163.25,9.7228]
[1752303963535,3.33669343,163.26,163.25,9.7228]
[1752303966137,3.29,163.28,163.27,6.122]
[1752303966438,3.29,163.28,163.27,9.402]
[1752303966936,3.29,163.3,163.27,3.28]
[1752303967536,3.29,163.3,163.27,3.32264305]
[1752303967735,3.29,163.3,163.29,6.1213]